fUSD/lending_fUSD_20241223
["ID","MTS","AMOUNT","RATE_DAILY","PERIOD"]
[346383445,1734929453653,-747.8,0.00019726,2]
[346383446,1734929453663,-772.45,0.00019726,2]
[346383447,1734929453672,-2577.85,0.00019726,2]
[346383448,1734929453682,-3171.46,0.00019726,2]
[346383449,1734929453692,-1429.08,0.00019726,2]
[346383450,1734929453701,-695.09,0.00019726,2]
[346383451,1734929453719,-533.98,0.00019726,2]
[346383452,1734929453733,-1345.91,0.00019726,2]
[346383453,1734929453743,-500.0,0.00019726,2]
[346383454,1734929453752,-3641.64,0.00019726,2]
[346383455,1734929453762,-500.0,0.00019726,2]
[346383456,1734929453771,-3634.69,0.00019726,2]
[346383457,1734929453780,-1247.47,0.00019726,2]
[346383458,1734929453790,-2304.44,0.00019726,2]
[346383459,1734929453799,-2549.78,0.00019726,2]
[346383460,1734929453808,-2254.14,0.00019726,2]
[346383461,1734929453818,-3014.06,0.00019726,2]
[346383462,1734929453827,-500.0,0.00019726,2]
[346383463,1734929453836,-1147.35,0.00019726,2]
[346383464,1734929453845,-614.0,0.00019726,2]
[346383465,1734929453854,-500.0,0.00019726,2]
[346383466,1734929453864,-2364.53,0.00019726,2]
[346383467,1734929453873,-2509.49,0.00019726,2]
[346383468,1734929453882,-9564.7,0.00019726,2]
[346383469,1734929453891,-643.72,0.00019726,2]
[346383470,1734929453901,-1029.63,0.00019726,2]
[346383471,1734929453910,-960.26,0.00019726,2]
[346383472,1734929453919,-1842.84,0.00019726,2]
[346383473,1734929453928,-529.34,0.00019726,2]
[346383474,1734929453937,-1151.27,0.00019726,2]
[346383475,1734929453947,-500.0,0.00019726,2]
[346383476,1734929453956,-4289.08,0.00019726,2]
[346383477,1734929453965,-2603.62,0.00019726,2]
[346383478,1734929453976,-3831.58,0.00019726,2]
[346383479,1734929453986,-1699.22,0.00019726,2]
[346383480,1734929453994,-569.82,0.00019726,2]
[346383481,1734929454004,-3434.16,0.00019726,2]
[346383482,1734929454012,-500.0,0.00019726,2]
[346383483,1734929454023,-6411.85,0.00019726,2]
[346383484,1734929454031,-500.0,0.00019726,2]
[346383485,1734929454040,-18071.75,0.00019726,2]
[346383486,1734929454050,-500.0,0.00019726,2]
[346383487,1734929454059,-1310.1,0.00019726,2]
[346383488,1734929454071,-645.85,0.00019726,2]
[346383489,1734929454080,-500.0,0.00019726,2]
[346383490,1734929454089,-500.0,0.00019726,2]
[346383491,1734929454098,-2013.3,0.00019726,2]
[346383492,1734929454106,-500.0,0.00019726,2]
[346383493,1734929454115,-646.48,0.00019726,2]
[346383494,1734929454125,-863.09,0.00019726,2]
[346383495,1734929454134,-679.34,0.00019726,2]
[346383496,1734929454143,-852.6,0.00019726,2]
[346383497,1734929454152,-960.25,0.00019726,2]
[346383498,1734929454161,-150.0,0.00019726,2]
[346383499,1734929454170,-259.0,0.0001973,2]
[346383500,1734929454178,-150.0,0.00019732,2]
[346383501,1734929454187,-150.0,0.00019734,2]
[346383502,1734929454196,-705.19,0.00019736,2]
[346383503,1734929454205,-150.0,0.0001974,2]
[346383504,1734929454215,-1500.0,0.00019744,2]
[346383505,1734929454224,-1363.68244479,0.00019747,2]
[346383506,1734929454233,-150.0,0.00019749,2]
[346383507,1734929454242,-209.0,0.0001975,2]
[346383508,1734929454251,-205.0,0.0001975,2]
[346383509,1734929454260,-209.0,0.0001975,2]
[346383510,1734929454269,-150.0,0.0001975,2]
[346383511,1734929454278,-203.0,0.0001975,2]
[346383512,1734929454287,-150.0,0.00019751,2]
[346383513,1734929454295,-150.0,0.00019768,2]
[346383514,1734929454304,-152.58945272,0.00019772,2]
[346383515,1734929454314,-168.60596891,0.00019772,2]
[346383516,1734929454326,-150.3324914,0.00019772,2]
[346383517,1734929454336,-500.0,0.00019772,2]
[346383518,1734929454345,-150.15060365,0.00019772,2]
[346383519,1734929454354,-266.38937523,0.00019772,2]
[346383520,1734929454363,-150.0,0.00019772,2]
[346383521,1734929454372,-500.0,0.00019772,2]
[346383522,1734929454381,-150.0,0.00019772,2]
[346383523,1734929454390,-1476.0,0.00019772,2]
[346383524,1734929454399,-858.0,0.00019772,2]
[346383525,1734929454408,-500.0,0.00019773,2]
[346383526,1734929454417,-150.0,0.00019773,2]
[346383527,1734929454426,-150.0,0.00019785,2]
[346383528,1734929454435,-833.02,0.0001979,2]
[346383529,1734929454444,-150.0,0.00019792,2]
[346383530,1734929454454,-150.0,0.00019794,2]
[346383531,1734929454463,-200.0,0.00019796,2]
[346383532,1734929454472,-109761.72042301,0.000198,2]
[346383533,1734929454481,-24403.002357,0.000198,2]
[346383534,1734929454490,-24403.002357,0.000198,2]
[346383535,1734929454500,-24403.002357,0.000198,2]
[346383536,1734929454509,-24403.002357,0.000198,2]
[346383537,1734929454518,-24403.002357,0.000198,2]
[346383538,1734929454527,-24403.002357,0.000198,2]
[346383539,1734929454536,-24403.002357,0.000198,2]
[346383540,1734929454545,-24403.002357,0.000198,2]
[346383541,1734929454554,-24403.002357,0.000198,2]
[346383542,1734929454563,-24403.002357,0.000198,2]
[346383543,1734929454575,-24403.002357,0.000198,2]
[346383544,1734929454584,-24403.002357,0.000198,2]
[346383545,1734929454593,-24403.002357,0.000198,2]
[346383546,1734929454603,-24403.002357,0.000198,2]
[346383547,1734929454612,-24403.002357,0.000198,2]
[346383548,1734929454621,-24403.002357,0.000198,2]
[346383549,1734929454630,-24403.002357,0.000198,2]
[346383550,1734929454639,-24403.002357,0.000198,2]
[346383551,1734929454648,-24403.002357,0.000198,2]
[346383552,1734929454657,-24403.002357,0.000198,2]
[346383553,1734929454666,-24403.002357,0.000198,2]
[346383554,1734929454675,-24403.002357,0.000198,2]
[346383555,1734929454684,-3062.0,0.000198,2]
[346383556,1734929454693,-5646.02030097,0.000198,2]
[346383557,1734929454701,-1500.0,0.000198,2]
[346383558,1734929454710,-150.0,0.0001981,2]
[346383559,1734929454720,-150.0,0.00019812,2]
[346383560,1734929454728,-150.0,0.00019814,2]
[346383561,1734929454737,-150.0,0.00019818,2]
[346383562,1734929454746,-150.0,0.00019826,2]
[346383563,1734929454755,-1500.0,0.00019831,2]
[346383564,1734929454764,-150.0,0.00019835,2]
[346383565,1734929454773,-150.0,0.00019836,2]
[346383566,1734929454782,-150.0,0.0001984,2]
[346383567,1734929454791,-2011.0,0.0001984,2]
[346383568,1734929454799,-1265.0,0.0001984,2]
[346383569,1734929454808,-633.0,0.0001984,2]
[346383570,1734929454818,-586.384,0.0001984,2]
[346383571,1734929454829,-255.736,0.0001984,2]
[346383572,1734929454838,-1101.0,0.0001984,2]
[346383573,1734929454847,-1899.0,0.0001984,2]
[346383574,1734929454856,-1256.0,0.0001984,2]
[346383575,1734929454865,-3770.0,0.0001984,2]
[346383576,1734929454874,-996.637,0.0001984,2]
[346383577,1734929454884,-834.0,0.0001984,2]
[346383578,1734929454893,-536.0,0.0001984,2]
[346383579,1734929454902,-3682.0,0.0001984,2]
[346383580,1734929454910,-150.0,0.0001984,2]
[346383581,1734929454919,-9592.0,0.0001984,2]
[346383582,1734929454928,-3887.0,0.0001984,2]
[346383583,1734929454937,-250.0,0.0001984,2]
[346383584,1734929454946,-150.0,0.0001984,2]
[346383585,1734929454955,-177.183,0.0001984,2]
[346383586,1734929454964,-1170.0,0.0001984,2]
[346383587,1734929454973,-258.81,0.00019845,2]
[346383588,1734929454985,-1500.0,0.0001985,2]
[346383589,1734929454994,-150.0,0.00019858,2]
[346383590,1734929455003,-150.0,0.0001986,2]
[346383591,1734929455012,-150.133,0.00019865,2]
[346383592,1734929455022,-160.494,0.00019865,2]
[346383593,1734929455030,-217.698,0.00019865,2]
[346383594,1734929455040,-250.0,0.00019865,2]
[346383595,1734929455051,-204.639,0.00019865,2]
[346383596,1734929455060,-198.871,0.00019865,2]
[346383597,1734929455070,-153.932,0.00019865,2]
[346383598,1734929455079,-150.0,0.00019869,2]
[346383599,1734929455088,-150.0,0.00019869,2]
[346383600,1734929455098,-150.0,0.0001987,2]
[346383601,1734929455107,-500.0,0.00019872,2]
[346383602,1734929455115,-500.0,0.00019872,2]
[346383603,1734929455124,-500.0,0.00019872,2]
[346383604,1734929455133,-500.0,0.00019872,2]
[346383605,1734929455142,-500.0,0.00019872,2]
[346383606,1734929455151,-500.0,0.00019872,2]
[346383607,1734929455160,-500.0,0.00019872,2]
[346383608,1734929455169,-500.0,0.00019872,2]
[346383609,1734929455178,-500.0,0.00019872,2]
[346383610,1734929455187,-500.0,0.00019872,2]
[346383611,1734929455196,-500.0,0.00019872,2]
[346383612,1734929455205,-500.0,0.00019872,2]
[346383613,1734929455215,-500.0,0.00019872,2]
[346383614,1734929455223,-500.0,0.00019872,2]
[346383615,1734929455232,-500.0,0.00019872,2]
[346383616,1734929455241,-500.0,0.00019872,2]
[346383617,1734929455250,-500.0,0.00019872,2]
[346383618,1734929455259,-500.0,0.00019872,2]
[346383619,1734929455268,-500.0,0.00019872,2]
[346383620,1734929455278,-500.0,0.00019872,2]
[346383621,1734929455287,-500.0,0.00019872,2]
[346383622,1734929455296,-500.0,0.00019872,2]
[346383623,1734929455305,-150.0,0.00019872,2]
[346383624,1734929455314,-500.0,0.00019872,2]
[346383625,1734929455325,-500.0,0.00019872,2]
[346383626,1734929455334,-500.0,0.00019872,2]
[346383627,1734929455343,-500.0,0.00019872,2]
[346383628,1734929455352,-500.0,0.00019872,2]
[346383629,1734929455360,-500.0,0.00019872,2]
[346383630,1734929455369,-500.0,0.00019872,2]
[346383631,1734929455378,-500.0,0.00019872,2]
[346383632,1734929455387,-500.0,0.00019872,2]
[346383633,1734929455396,-500.0,0.00019872,2]
[346383634,1734929455405,-500.0,0.00019872,2]
[346383635,1734929455414,-500.0,0.00019872,2]
[346383636,1734929455422,-500.0,0.00019872,2]
[346383637,1734929455431,-500.0,0.00019872,2]
[346383638,1734929455440,-500.0,0.00019872,2]
[346383639,1734929455449,-500.0,0.00019872,2]
[346383640,1734929455459,-500.0,0.00019872,2]
[346383641,1734929455468,-500.0,0.00019872,2]
[346383642,1734929455477,-500.0,0.00019872,2]
[346383643,1734929455486,-500.0,0.00019872,2]
[346383644,1734929455495,-500.0,0.00019872,2]
[346383645,1734929455504,-500.0,0.00019872,2]
[346383646,1734929455514,-500.0,0.00019872,2]
[346383647,1734929455523,-500.0,0.00019872,2]
[346383648,1734929455532,-500.0,0.00019872,2]
[346383649,1734929455541,-500.0,0.00019872,2]
[346383650,1734929455550,-705.19,0.00019873,2]
[346383651,1734929455559,-23514.82306532,0.00019875,2]
[346383652,1734929455570,-295.66,0.0001988,2]
[346383653,1734929455580,-5800.0,0.00019883,2]
[346383654,1734929455590,-150.0,0.00019884,2]
[346383655,1734929455600,-150.0,0.00019887,2]
[346383656,1734929455609,-150.0,0.00019887,2]
[346383657,1734929455619,-9999.999,0.00019889,2]
[346383658,1734929455628,-153.0,0.0001989,2]
[346383659,1734929455637,-153.0,0.0001989,2]
[346383660,1734929455646,-153.0,0.0001989,2]
[346383661,1734929455655,-153.0,0.0001989,2]
[346383662,1734929455664,-153.0,0.0001989,2]
[346383663,1734929455673,-153.0,0.0001989,2]
[346383664,1734929455682,-150.0,0.0001989,2]
[346383665,1734929455691,-153.0,0.0001989,2]
[346383666,1734929455700,-153.0,0.0001989,2]
[346383667,1734929455709,-153.0,0.0001989,2]
[346383668,1734929455718,-153.0,0.0001989,2]
[346383669,1734929455727,-153.0,0.0001989,2]
[346383670,1734929455736,-153.0,0.0001989,2]
[346383671,1734929455745,-153.0,0.0001989,2]
[346383672,1734929455754,-153.0,0.0001989,2]
[346383673,1734929455763,-153.0,0.0001989,2]
[346383674,1734929455772,-153.0,0.0001989,2]
[346383675,1734929455781,-153.0,0.0001989,2]
[346383676,1734929455789,-153.0,0.00019891,2]
[346383677,1734929455799,-153.0,0.00019891,2]
[346383678,1734929455807,-153.0,0.00019891,2]
[346383679,1734929455816,-153.0,0.00019891,2]
[346383680,1734929455825,-153.0,0.00019891,2]
[346383681,1734929455835,-150.0,0.00019891,2]
[346383682,1734929455844,-5800.0,0.00019892,2]
[346383683,1734929455853,-153.0,0.00019892,2]
[346383684,1734929455862,-150.0,0.00019894,2]
[346383685,1734929455871,-150.0,0.00019895,2]
[346383686,1734929455880,-127729.39950225,0.000199,2]
[346383687,1734929455889,-15456.44079722,0.000199,2]
[346383688,1734929455898,-22320.94339651,0.000199,2]
[346383689,1734929455907,-816.35,0.000199,2]
[346383690,1734929455916,-572403.1108,0.000199,2]
[346383691,1734929455925,-151.0,0.000199,2]
[346383692,1734929455934,-177.08806774,0.000199,2]
[346383693,1734929455943,-221.74706598,0.000199,2]
[346383694,1734929455952,-221.74,0.000199,2]
[346383695,1734929455961,-1425.78510859,0.000199,2]
[346383696,1734929455970,-5800.0,0.000199,2]
[346383697,1734929455982,-231.90716572,0.000199,2]
[346383698,1734929455991,-150.0,0.00019901,2]
[346383699,1734929456001,-150.0,0.00019908,2]
[346383700,1734929456010,-151.0,0.00019909,2]
[346383701,1734929456020,-151.0,0.00019909,2]
[346383702,1734929456030,-151.0,0.00019909,2]
[346383703,1734929456039,-152.817248,0.00019909,2]
[346383704,1734929456049,-151.0,0.00019909,2]
[346383705,1734929456058,-151.0,0.00019909,2]
[346383706,1734929456068,-151.0,0.00019909,2]
[346383707,1734929456077,-151.0,0.00019909,2]
[346383708,1734929456087,-151.0,0.00019909,2]
[346383709,1734929456095,-500.0,0.00019909,2]
[346383710,1734929456104,-500.0,0.00019909,2]
[346383711,1734929456113,-1179.31,0.00019909,2]
[346383712,1734929456122,-642.16,0.00019909,2]
[346383713,1734929456132,-500.0,0.00019909,2]
[346383714,1734929456141,-513.41,0.00019909,2]
[346383715,1734929456150,-500.0,0.00019909,2]
[346383716,1734929456159,-1315.35,0.00019909,2]
[346383717,1734929456168,-799.93,0.00019909,2]
[346383718,1734929456177,-1282.06,0.00019909,2]
[346383719,1734929456186,-500.0,0.00019909,2]
[346383720,1734929456195,-535.91,0.00019909,2]
[346383721,1734929456204,-500.0,0.00019909,2]
[346383722,1734929456213,-500.0,0.00019909,2]
[346383723,1734929456222,-661.93,0.00019909,2]
[346383724,1734929456231,-500.0,0.00019909,2]
[346383725,1734929456240,-740.62,0.00019909,2]
[346383726,1734929456248,-909.45,0.00019909,2]
[346383727,1734929456257,-500.0,0.00019909,2]
[346383728,1734929456267,-500.0,0.00019909,2]
[346383729,1734929456276,-500.0,0.00019909,2]
[346383730,1734929456285,-150.0,0.00019909,2]
[346383731,1734929456294,-150.0,0.00019911,2]
[346383732,1734929456303,-150.0,0.00019914,2]
[346383733,1734929456312,-150.0,0.00019918,2]
[346383734,1734929456323,-150.0,0.0001992,2]
[346383735,1734929456332,-150.0,0.00019925,2]
[346383736,1734929456341,-150.0,0.00019926,2]
[346383737,1734929456350,-1500.0,0.00019927,2]
[346383738,1734929456358,-150.0,0.00019927,2]
[346383739,1734929456367,-150.0,0.0001993,2]
[346383740,1734929456552,-150.0,0.00019941,2]
[346383741,1734929456562,-150.0,0.00019944,2]
[346383742,1734929456573,-217.68498031,0.00019951,2]
[346383743,1734929456583,-152.88245044,0.00019953,2]
[346383744,1734929456592,-150.0,0.00019954,2]
[346383745,1734929456601,-155.9,0.00019956,2]
[346383746,1734929456610,-159689.17984,0.0001996,2]
[346383747,1734929456619,-150.0,0.0001996,2]
[346383748,1734929456628,-150.0,0.00019962,2]
[346383749,1734929456638,-178.91146434,0.00019969,2]
[346383750,1734929456646,-1000.0,0.0001997,2]
[346383751,1734929456655,-1000.0,0.0001997,2]
[346383752,1734929456664,-1000.0,0.0001997,2]
[346383753,1734929456673,-1000.0,0.0001997,2]
[346383754,1734929456682,-1000.0,0.0001997,2]
[346383755,1734929456691,-1000.0,0.0001997,2]
[346383756,1734929456699,-1000.0,0.0001997,2]
[346383757,1734929456708,-1000.0,0.0001997,2]
[346383758,1734929456717,-1000.0,0.0001997,2]
[346383759,1734929456726,-1915.08636567,0.0001997,2]
[346383760,1734929456734,-500.0,0.0001997,2]
[346383761,1734929456743,-500.0,0.0001997,2]
[346383762,1734929456752,-500.0,0.0001997,2]
[346383763,1734929456762,-500.0,0.0001997,2]
[346383764,1734929456771,-701.87219522,0.0001997,2]
[346383765,1734929456780,-514.0,0.0001997,2]
[346383766,1734929456789,-150.0,0.00019971,2]
[346383767,1734929456798,-150.0,0.00019971,2]
[346383768,1734929456807,-150.0,0.00019971,2]
[346383769,1734929456816,-150.0,0.00019977,2]
[346383770,1734929456827,-16544.39486439,0.0001998,2]
[346383771,1734929456836,-3512779.00181995,0.0001998,2]
[346383772,1734929456845,-151.0,0.0001998,2]
[346383773,1734929456854,-238.857697,0.0001998,2]
[346383774,1734929456862,-151.0,0.0001998,2]
[346383775,1734929456872,-153.134472,0.0001998,2]
[346383776,1734929456881,-153.082133,0.0001998,2]
[346383777,1734929456890,-151.0,0.0001998,2]
[346383778,1734929456899,-151.0,0.0001998,2]
[346383779,1734929456908,-151.0,0.0001998,2]
[346383780,1734929456918,-151.0,0.0001998,2]
[346383781,1734929456927,-152.187258,0.0001998,2]
[346383782,1734929456936,-151.0,0.0001998,2]
[346383783,1734929456945,-151.0,0.0001998,2]
[346383784,1734929456954,-245.65,0.0001998,2]
[346383785,1734929456963,-151.0,0.0001998,2]
[346383786,1734929456973,-151.0,0.0001998,2]
[346383787,1734929456984,-151.0,0.0001998,2]
[346383788,1734929456994,-150.0,0.0001998,2]
[346383789,1734929457003,-150.0,0.00019988,2]
[346383790,1734929457012,-150.0,0.00019988,2]
[346383791,1734929457022,-824392.94278827,0.0001999,2]
[346383792,1734929457032,-150.0,0.0001999,2]
[346383793,1734929457041,-100079.42091389,0.00019991,2]
[346383794,1734929457050,-200.0,0.00019994,2]
[346383795,1734929457059,-1764.9449396,0.00019996,2]
[346383796,1734929457070,-1660.3110659,0.00019996,2]
[346383797,1734929457079,-1555.6771921,0.00019996,2]
[346383798,1734929457088,-1451.0433183,0.00019996,2]
[346383799,1734929457096,-1346.4094446,0.00019996,2]
[346383800,1734929457105,-1241.7755708,0.00019996,2]
[346383801,1734929457114,-2300.0183924,0.00019996,2]
[346383802,1734929457123,-2163.6629579,0.00019996,2]
[346383803,1734929457132,-2027.3075234,0.00019996,2]
[346383804,1734929457142,-1890.9520889,0.00019996,2]
[346383805,1734929457151,-1754.5966544,0.00019996,2]
[346383806,1734929457160,-1618.2412198,0.00019996,2]
[346383807,1734929457169,-326969.63642665,0.00019997,2]
[346383808,1734929457179,-300.0,0.00019999,2]
[346383809,1734929457188,-666.0,0.00019999,2]
[346383810,1734929457196,-305.89578756,0.00019999,2]
[346383811,1734929457206,-300.0,0.00019999,2]
[346383812,1734929457214,-666.0,0.00019999,2]
[346383813,1734929457223,-300.0,0.00019999,2]
[346383814,1734929457233,-378.86774927,0.00019999,2]
[346383815,1734929457242,-94890.28329935,0.00019999,2]
[346383816,1734929457251,-151132.04742075,0.00019999,2]
[346383817,1734929457260,-113335.65809054,0.00019999,2]
[346383818,1734929457269,-1000.0,0.00019999,2]
[346383819,1734929457278,-13069.7811,0.0002,2]
[346383820,1734929457287,-29716.83646219,0.0002,3]
[346383821,1734929457296,-2078040.2757487,0.0002,3]
[346383822,1734929457666,-25998.7611,0.0002,3]
[346383823,1734929457677,-1372.22541054,0.0002,3]
[346383824,1734929457707,-8430.30970546,0.0002,3]
[346383825,1734929457741,-1675.68,0.00019726,2]
[346383826,1734929457750,-26414.03318344,0.0002,3]
[346383827,1734929458094,-806.34000009,0.0002,3]
[346383828,1734929458263,-9102.65987158,0.0002,3]
[346383829,1734929458278,-3429.69463551,0.0002,3]
[346383830,1734929459149,-68.86273855,0.0002,3]
[346383831,1734929459247,-20042.725,0.0002,3]
[346383832,1734929459261,-3321.77441633,0.0002,3]
[346383833,1734929459272,-1213.4561321,0.0002,3]
[346383834,1734929459524,-1152.44,0.00019178,2]
[346383835,1734929459534,-1152.44,0.00019452,2]
[346383836,1734929459543,-38.12892305,0.00019726,2]
[346383837,1734929459571,-1114.31107695,0.00019726,2]
[346383838,1734929459580,-150.0,0.0001984,2]
[346383839,1734929459589,-153.0,0.0001989,2]
[346383840,1734929459599,-153.0,0.0001989,2]
[346383841,1734929459608,-153.0,0.0001989,2]
[346383842,1734929459617,-4941.48892313,0.0002,3]
[346383843,1734929459636,-279.48088524,0.0002,3]
[346383844,1734929459647,-1011.0,0.0002,3]
[346383845,1734929459658,-5157.8190213,0.0002,3]
[346383846,1734929459681,-743.3523116,0.0002,3]
[346383847,1734929459701,-1025.20992494,0.0002,3]
[346383848,1734929459713,-1541.10725272,0.0002,3]
[346383850,1734930003674,157.76928967,0.0002,30]
[346383851,1734930036033,841.57,0.00016475,2]
[346383852,1734930068925,154.8,0.00018535,30]
[346383853,1734930096770,186.57,0.00010137,2]
[346383854,1734930236734,307.02497649,0.0001813,2]
[346383855,1734930260271,179.06,0.00013699,2]
[346383856,1734930305995,150.0,0.00018,2]
[346383857,1734930308452,150.0,0.00018,2]
[346383858,1734930315393,150.00000001,0.00018,2]
[346383859,1734930323486,150.96575429,0.00018,2]
[346383860,1734930328780,153.40168133,0.00018,2]
[346383861,1734930333950,261.06927238,0.00018,2]
[346383862,1734930335899,150.0,0.00018,2]
[346383863,1734930342134,1848.4783155,0.00018181,2]
[346383864,1734930480069,150.0,0.00017975,2]
[346383869,1734930631967,-200.54,0.0001802,2]
[346383870,1734930631977,-250.0,0.0001802,2]
[346383871,1734930631987,-1000.0,0.00018064,2]
[346383872,1734930632000,-492.77575255,0.00018181,2]
[346383873,1734930632011,-479.64748633,0.00018181,2]
[346383874,1734930632034,-1771.39958975,0.00018181,2]
[346383878,1734930637705,-18809.00885587,0.00018181,2]
[346383879,1734930637715,-317.57,0.00018194,2]
[346383880,1734930637725,-715.64,0.00018222,2]
[346383881,1734930637734,-2000.0,0.0001823,2]
[346383882,1734930637747,-200.0,0.00018277,2]
[346383883,1734930637757,-200.0,0.00018435,2]
[346383884,1734930637767,-500.0,0.0001844,2]
[346383885,1734930637777,-743.9,0.00018443,2]
[346383886,1734930637786,-250.0,0.00018459,2]
[346383887,1734930637796,-201.81,0.00018624,2]
[346383888,1734930637805,-203.73,0.00018624,2]
[346383889,1734930637814,-203.64,0.00018624,2]
[346383890,1734930637824,-200.33,0.00018624,2]
[346383891,1734930637833,-250.0,0.00018624,2]
[346383892,1734930637843,-4010.664,0.00018639,2]
[346383893,1734930637851,-150.98,0.00018645,2]
[346383894,1734930637861,-841.57,0.00018739,2]
[346383895,1734930637870,-220.0,0.000189,2]
[346383896,1734930637880,-7501.51854849,0.00019,2]
[346383897,1734930637889,-221.793,0.00019,2]
[346383898,1734930637899,-500.0,0.00019038,2]
[346383899,1734930637908,-170.71,0.00019056,2]
[346383900,1734930637918,-1000.0,0.00019078,2]
[346383901,1734930637927,-1312.1239,0.00019078,2]
[346383902,1734930637936,-13069.7811,0.00019088,2]
[346383903,1734930637946,-500.0,0.00019178,2]
[346383904,1734930637955,-500.0,0.00019178,2]
[346383905,1734930637965,-500.0,0.00019178,2]
[346383906,1734930637975,-500.0,0.00019178,2]
[346383907,1734930637985,-500.0,0.00019178,2]
[346383908,1734930637998,-500.0,0.00019178,2]
[346383909,1734930638007,-410.60770122,0.00019178,2]
[346383910,1734930638018,-500.0,0.00019178,2]
[346383911,1734930638028,-500.0,0.00019178,2]
[346383912,1734930638038,-500.0,0.00019178,2]
[346383913,1734930638049,-500.0,0.00019178,2]
[346383914,1734930638059,-500.0,0.00019178,2]
[346383915,1734930638069,-533.44951255,0.00019178,2]
[346383916,1734930638079,-500.0,0.00019178,2]
[346383917,1734930638089,-500.0,0.00019178,2]
[346383918,1734930638099,-500.0,0.00019178,2]
[346383919,1734930638110,-500.0,0.00019178,2]
[346383920,1734930638120,-216.98504416,0.00019178,2]
[346383921,1734930638130,-500.0,0.00019178,2]
[346383922,1734930638140,-500.0,0.00019178,2]
[346383923,1734930638150,-500.0,0.00019178,2]
[346383924,1734930638160,-781.72,0.00019178,2]
[346383925,1734930638169,-500.0,0.00019178,2]
[346383926,1734930638179,-500.0,0.00019178,2]
[346383927,1734930638190,-205.42492921,0.00019178,2]
[346383928,1734930638200,-500.0,0.00019178,2]
[346383929,1734930638210,-500.0,0.00019178,2]
[346383930,1734930638219,-500.0,0.00019178,2]
[346383931,1734930638229,-510.29726184,0.00019178,2]
[346383932,1734930638238,-500.0,0.00019178,2]
[346383933,1734930638252,-500.0,0.00019178,2]
[346383934,1734930638261,-500.0,0.00019178,2]
[346383935,1734930638272,-515.39924789,0.00019178,2]
[346383936,1734930638281,-500.0,0.00019178,2]
[346383937,1734930638291,-500.0,0.00019178,2]
[346383938,1734930638300,-500.0,0.00019178,2]
[346383939,1734930638310,-500.0,0.00019178,2]
[346383940,1734930638319,-500.0,0.00019178,2]
[346383941,1734930638329,-500.0,0.00019178,2]
[346383942,1734930638339,-948.17,0.00019178,2]
[346383943,1734930638351,-500.0,0.00019178,2]
[346383944,1734930638360,-500.0,0.00019178,2]
[346383945,1734930638370,-655.51,0.00019178,2]
[346383946,1734930638379,-500.0,0.00019178,2]
[346383947,1734930638389,-500.0,0.00019178,2]
[346383948,1734930638399,-500.0,0.00019178,2]
[346383949,1734930638408,-500.0,0.00019178,2]
[346383950,1734930638417,-500.0,0.00019178,2]
[346383951,1734930638428,-500.0,0.00019178,2]
[346383952,1734930638437,-500.0,0.00019178,2]